[Event "*** Titled Tuesday Blitz"]
[Site "Chess.com"]
[Date "2021.03.09"]
[Round "8"]
[White "MustafayevFarid2004"]
[Black "davidkalashian"]
[Result "1/2-1/2"]
[WhiteElo "2447"]
[BlackElo "2575"]
[TimeControl "180+1"]
[EndTime "11:33:08 PST"]
[Termination "Game drawn by repetition"]

1. d4 {[%clk 0:03:00.9]} 1... Nf6 {[%clk 0:02:57.7]} 2. c4 {[%clk 0:03:01.1]}
2... e6 {[%clk 0:02:57.9]} 3. Nc3 {[%clk 0:03:00]} 3... Bb4 {[%clk 0:02:57.1]}
4. e3 {[%clk 0:03:00.1]} 4... c5 {[%clk 0:02:56.3]} 5. Ne2 {[%clk 0:03:00.3]}
5... cxd4 {[%clk 0:02:54.4]} 6. exd4 {[%clk 0:03:00.3]} 6... O-O {[%clk
0:02:55.3]} 7. a3 {[%clk 0:03:00.2]} 7... Be7 {[%clk 0:02:55.6]} 8. Ng3 {[%clk
0:03:00.3]} 8... b6 {[%clk 0:02:52]} 9. Bd3 {[%clk 0:02:57]} 9... Bb7 {[%clk
0:02:51.7]} 10. O-O {[%clk 0:02:57.3]} 10... d5 {[%clk 0:02:51.9]} 11. Bg5
{[%clk 0:02:49.2]} 11... Nbd7 {[%clk 0:02:49.6]} 12. Re1 {[%clk 0:02:46.7]}
12... Rc8 {[%clk 0:02:43.1]} 13. b3 {[%clk 0:02:45]} 13... h6 {[%clk 0:02:41.2]}
14. Bf4 {[%clk 0:02:40.1]} 14... a6 {[%clk 0:02:38]} 15. Rc1 {[%clk 0:02:35.6]}
15... Bxa3 {[%clk 0:02:35.3]} 16. Rc2 {[%clk 0:02:33.1]} 16... Bb4 {[%clk
0:02:30.5]} 17. Re3 {[%clk 0:02:24.3]} 17... dxc4 {[%clk 0:02:22.1]} 18. bxc4
{[%clk 0:02:22.9]} 18... b5 {[%clk 0:02:20.6]} 19. c5 {[%clk 0:02:03.8]} 19...
Bxc3 {[%clk 0:02:12.6]} 20. Rxc3 {[%clk 0:02:01.6]} 20... Nd5 {[%clk 0:02:13]}
21. Qg4 {[%clk 0:01:42.9]} 21... f5 {[%clk 0:02:04.7]} 22. Qf3 {[%clk
0:01:29.9]} 22... Ba8 {[%clk 0:01:53.8]} 23. Rc1 {[%clk 0:01:24.7]} 23... Nxe3
{[%clk 0:01:52.2]} 24. Qxe3 {[%clk 0:01:22.9]} 24... Bd5 {[%clk 0:01:51.3]} 25.
Bd6 {[%clk 0:01:22.3]} 25... Re8 {[%clk 0:01:47.6]} 26. f4 {[%clk 0:01:14.3]}
26... Nf6 {[%clk 0:01:47.3]} 27. Ra1 {[%clk 0:01:09.3]} 27... Ra8 {[%clk
0:01:35.3]} 28. h3 {[%clk 0:01:02.9]} 28... b4 {[%clk 0:01:29.7]} 29. Bc2 {[%clk
0:00:50.5]} 29... a5 {[%clk 0:01:20]} 30. Ba4 {[%clk 0:00:49]} 30... Re7 {[%clk
0:01:19.6]} 31. Nxf5 {[%clk 0:00:42.8]} 31... Rf7 {[%clk 0:01:02.2]} 32. Ng3
{[%clk 0:00:39.7]} 32... Rb7 {[%clk 0:00:54.9]} 33. f5 {[%clk 0:00:34.3]} 33...
Qc8 {[%clk 0:00:42.9]} 34. Be5 {[%clk 0:00:31]} 34... Nd7 {[%clk 0:00:37.9]} 35.
Bf4 {[%clk 0:00:17.6]} 35... Nf6 {[%clk 0:00:32.5]} 36. Be5 {[%clk 0:00:15.3]}
36... Rf7 {[%clk 0:00:31.9]} 37. Rf1 {[%clk 0:00:12.6]} 37... Ra6 {[%clk
0:00:20.5]} 38. Bxf6 {[%clk 0:00:10.3]} 38... Rxf6 {[%clk 0:00:19.9]} 39. Nh5
{[%clk 0:00:09.2]} 39... Rxf5 {[%clk 0:00:19.8]} 40. Rxf5 {[%clk 0:00:09.6]}
40... exf5 {[%clk 0:00:20.7]} 41. Nxg7 {[%clk 0:00:07]} 41... Kxg7 {[%clk
0:00:19]} 42. Qe5+ {[%clk 0:00:06.6]} 42... Kh7 {[%clk 0:00:17.5]} 43. Qxd5
{[%clk 0:00:07.5]} 43... Rg6 {[%clk 0:00:15.8]} 44. Bd7 {[%clk 0:00:06.1]} 44...
Qg8 {[%clk 0:00:14.3]} 45. Qxf5 {[%clk 0:00:03.8]} 45... Kh8 {[%clk 0:00:13.2]}
46. Qe5+ {[%clk 0:00:04.1]} 46... Qg7 {[%clk 0:00:12.9]} 47. c6 {[%clk 0:00:04]}
47... Rxg2+ {[%clk 0:00:10.1]} 48. Kf1 {[%clk 0:00:04.4]} 48... Rg1+ {[%clk
0:00:07.7]} 49. Kf2 {[%clk 0:00:04.8]} 49... Rg2+ {[%clk 0:00:07.8]} 50. Kf3
{[%clk 0:00:05.4]} 50... Rc2 {[%clk 0:00:06.4]} 51. Qxg7+ {[%clk 0:00:04.4]}
51... Kxg7 {[%clk 0:00:05.7]} 52. d5 {[%clk 0:00:05.3]} 52... Kf6 {[%clk
0:00:05.9]} 53. d6 {[%clk 0:00:06.2]} 53... Ke5 {[%clk 0:00:05.7]} 54. c7 {[%clk
0:00:06.6]} 54... Kxd6 {[%clk 0:00:06.6]} 55. c8=Q {[%clk 0:00:06.8]} 55... Rxc8
{[%clk 0:00:06.7]} 56. Bxc8 {[%clk 0:00:07.7]} 56... Kc5 {[%clk 0:00:06.1]} 57.
Be6 {[%clk 0:00:05.5]} 57... a4 {[%clk 0:00:06.2]} 58. Ke3 {[%clk 0:00:05.6]}
58... b3 {[%clk 0:00:06.6]} 59. Kd2 {[%clk 0:00:05.9]} 59... Kb4 {[%clk
0:00:07.5]} 60. Kc1 {[%clk 0:00:05.7]} 60... Kc3 {[%clk 0:00:06.6]} 61. Kb1
{[%clk 0:00:04.2]} 61... a3 {[%clk 0:00:07.5]} 62. Bf5 {[%clk 0:00:04.5]} 62...
Kd2 {[%clk 0:00:05.7]} 63. Be6 {[%clk 0:00:03]} 63... Kc3 {[%clk 0:00:03.4]} 64.
Bf5 {[%clk 0:00:03.2]} 64... Kb4 {[%clk 0:00:03.6]} 65. Be6 {[%clk 0:00:03.2]}
65... Kc3 {[%clk 0:00:04.5]} 1/2-1/2

[Event "*** Titled Tuesday Blitz"]
[Site "Chess.com"]
[Date "2021.03.09"]
[Round "8"]
[White "Sanyura"]
[Black "ChessQueen"]
[Result "0-1"]
[WhiteElo "2619"]
[BlackElo "2784"]
[TimeControl "180+1"]
[EndTime "11:33:16 PST"]
[Termination "ChessQueen won by checkmate"]

1. e4 {[%clk 0:02:46.9]} 1... c6 {[%clk 0:02:59.9]} 2. Nc3 {[%clk 0:02:43.4]}
2... d5 {[%clk 0:02:59.9]} 3. Nf3 {[%clk 0:02:43.9]} 3... dxe4 {[%clk
0:03:00.3]} 4. Nxe4 {[%clk 0:02:44.5]} 4... Nf6 {[%clk 0:03:01]} 5. Qe2 {[%clk
0:02:44.7]} 5... Nxe4 {[%clk 0:03:00.9]} 6. Qxe4 {[%clk 0:02:45.6]} 6... Nd7
{[%clk 0:03:01.2]} 7. Bc4 {[%clk 0:02:46]} 7... Nf6 {[%clk 0:03:01.5]} 8. Qe2
{[%clk 0:02:46.6]} 8... Bf5 {[%clk 0:02:53.3]} 9. d4 {[%clk 0:02:43.9]} 9... e6
{[%clk 0:02:53.2]} 10. c3 {[%clk 0:02:43.8]} 10... Be7 {[%clk 0:02:49.7]} 11.
O-O {[%clk 0:02:43.7]} 11... O-O {[%clk 0:02:44.5]} 12. Bf4 {[%clk 0:02:38.6]}
12... Nd5 {[%clk 0:02:42.2]} 13. Bg3 {[%clk 0:02:37]} 13... Bg4 {[%clk 0:02:35]}
14. h3 {[%clk 0:02:36.1]} 14... Bh5 {[%clk 0:02:34.5]} 15. Rfe1 {[%clk 0:02:33]}
15... Re8 {[%clk 0:02:32.7]} 16. Bd3 {[%clk 0:02:28.9]} 16... a5 {[%clk
0:02:27.1]} 17. a3 {[%clk 0:02:19.8]} 17... a4 {[%clk 0:02:17]} 18. c4 {[%clk
0:02:19.4]} 18... Nf6 {[%clk 0:02:16]} 19. Rad1 {[%clk 0:02:19.3]} 19... Qa5
{[%clk 0:02:11.1]} 20. Be5 {[%clk 0:02:04.7]} 20... Rad8 {[%clk 0:02:08.9]} 21.
Bc2 {[%clk 0:01:57.8]} 21... Nd7 {[%clk 0:02:02.1]} 22. Bg3 {[%clk 0:01:22]}
22... Bf6 {[%clk 0:01:54.5]} 23. Be4 {[%clk 0:00:42.2]} 23... Nf8 {[%clk
0:01:51.5]} 24. Qe3 {[%clk 0:00:07.9]} 24... Qb6 {[%clk 0:01:45.5]} 25. c5
{[%clk 0:00:04.2]} 25... Qb5 {[%clk 0:01:31.2]} 26. Bd6 {[%clk 0:00:04.1]} 26...
Be7 {[%clk 0:01:25]} 27. Bd3 {[%clk 0:00:04.1]} 27... Qb3 {[%clk 0:01:12.5]} 28.
Bxe7 {[%clk 0:00:04.2]} 28... Rxe7 {[%clk 0:01:13]} 29. Qg5 {[%clk 0:00:04.6]}
29... Bxf3 {[%clk 0:01:13.4]} 30. Qxe7 {[%clk 0:00:04]} 30... Rd7 {[%clk
0:01:13.9]} 31. Bxh7+ {[%clk 0:00:02.6]} 31... Kxh7 {[%clk 0:01:08.4]} 32. Qxf8
{[%clk 0:00:03]} 32... Bxd1 {[%clk 0:01:03.2]} 33. Re4 {[%clk 0:00:03.6]} 33...
Bh5 {[%clk 0:00:53.7]} 34. Rh4 {[%clk 0:00:03.1]} 34... Qd1+ {[%clk 0:00:53.9]}
35. Kh2 {[%clk 0:00:03.6]} 35... g5 {[%clk 0:00:36.4]} 36. Re4 {[%clk
0:00:02.1]} 36... Bg6 {[%clk 0:00:30.2]} 37. Re5 {[%clk 0:00:02.3]} 37... Qxd4
{[%clk 0:00:29.3]} 38. Rxg5 {[%clk 0:00:03]} 38... Qf4+ {[%clk 0:00:29.5]} 39.
Rg3 {[%clk 0:00:02.8]} 39... Rd3 {[%clk 0:00:17]} 40. h4 {[%clk 0:00:02.3]}
40... Rxg3 {[%clk 0:00:16.6]} 41. fxg3 {[%clk 0:00:03.2]} 41... Qf5 {[%clk
0:00:15.9]} 42. Qe7 {[%clk 0:00:03.7]} 42... Qd5 {[%clk 0:00:14]} 43. Qxb7
{[%clk 0:00:04.2]} 43... Qxc5 {[%clk 0:00:13.2]} 44. Qc7 {[%clk 0:00:04.9]}
44... Qd5 {[%clk 0:00:13.1]} 45. Qf4 {[%clk 0:00:05.1]} 45... Kg7 {[%clk
0:00:12.8]} 46. Qg4 {[%clk 0:00:05.4]} 46... Qb5 {[%clk 0:00:11]} 47. Qd4+
{[%clk 0:00:05.5]} 47... Kh7 {[%clk 0:00:10.4]} 48. Qg4 {[%clk 0:00:05.9]} 48...
Qd5 {[%clk 0:00:05.5]} 49. Qf4 {[%clk 0:00:06]} 49... Be4 {[%clk 0:00:05.2]} 50.
Qxf7+ {[%clk 0:00:05.1]} 50... Kh6 {[%clk 0:00:05.8]} 51. Qf6+ {[%clk
0:00:05.3]} 51... Bg6 {[%clk 0:00:04.7]} 52. Qh8+ {[%clk 0:00:05.3]} 52... Bh7
{[%clk 0:00:04.1]} 53. Qf8+ {[%clk 0:00:05.9]} 53... Kg6 {[%clk 0:00:03.9]} 54.
Qe8+ {[%clk 0:00:06.5]} 54... Kg7 {[%clk 0:00:04.4]} 55. Qe7+ {[%clk 0:00:06.9]}
55... Kh6 {[%clk 0:00:04.3]} 56. Qf6+ {[%clk 0:00:07.3]} 56... Kh5 {[%clk
0:00:04]} 57. Qf7+ {[%clk 0:00:04.3]} 57... Kh6 {[%clk 0:00:04.5]} 58. Qf6+
{[%clk 0:00:04.6]} 58... Bg6 {[%clk 0:00:04.8]} 59. g4 {[%clk 0:00:03.7]} 59...
Kh7 {[%clk 0:00:04.6]} 60. h5 {[%clk 0:00:03.8]} 60... Be4 {[%clk 0:00:03.5]}
61. Qe7+ {[%clk 0:00:03.7]} 61... Kg8 {[%clk 0:00:03.6]} 62. Qe8+ {[%clk
0:00:03.7]} 62... Kg7 {[%clk 0:00:03.7]} 63. Qe7+ {[%clk 0:00:04.3]} 63... Kh8
{[%clk 0:00:03.4]} 64. Qf8+ {[%clk 0:00:04.6]} 64... Kh7 {[%clk 0:00:04]} 65.
Qf7+ {[%clk 0:00:05.2]} 65... Kh8 {[%clk 0:00:04.1]} 66. Qf6+ {[%clk 0:00:05.8]}
66... Kg8 {[%clk 0:00:04.5]} 67. g5 {[%clk 0:00:06.2]} 67... Qd6+ {[%clk
0:00:04.6]} 68. Kh3 {[%clk 0:00:06.4]} 68... Qd3+ {[%clk 0:00:04.2]} 69. g3
{[%clk 0:00:06.5]} 69... Bf5+ {[%clk 0:00:04.8]} 70. Kh2 {[%clk 0:00:02]} 70...
Qe2+ {[%clk 0:00:05.2]} 71. Kg1 {[%clk 0:00:02.5]} 71... Qe1+ {[%clk 0:00:05.5]}
72. Kg2 {[%clk 0:00:02]} 72... Be4+ {[%clk 0:00:05.9]} 73. Kh3 {[%clk
0:00:02.6]} 73... Qh1+ {[%clk 0:00:04.9]} 74. Kg4 {[%clk 0:00:03.2]} 74... Bf5+
{[%clk 0:00:05.5]} 75. Kf4 {[%clk 0:00:02.7]} 75... Qe4# {[%clk 0:00:06]} 0-1

[Event "*** Titled Tuesday Blitz"]
[Site "Chess.com"]
[Date "2021.03.09"]
[Round "8"]
[White "Sergey85Rodchenkov"]
[Black "TorFredrikKaasen"]
[Result "1-0"]
[WhiteElo "2518"]
[BlackElo "2678"]
[TimeControl "180+1"]
[EndTime "11:33:28 PST"]
[Termination "Sergey85Rodchenkov won on time"]

1. e4 {[%clk 0:03:00.9]} 1... c5 {[%clk 0:02:59.8]} 2. Nf3 {[%clk 0:03:00.5]}
2... Nc6 {[%clk 0:03:00.5]} 3. d4 {[%clk 0:03:00.9]} 3... cxd4 {[%clk
0:03:00.8]} 4. Nxd4 {[%clk 0:03:01.4]} 4... Nf6 {[%clk 0:03:01.5]} 5. Nc3 {[%clk
0:03:00.6]} 5... d6 {[%clk 0:03:02.2]} 6. Bc4 {[%clk 0:03:00.1]} 6... Qb6 {[%clk
0:03:01.7]} 7. Ndb5 {[%clk 0:02:59.5]} 7... a6 {[%clk 0:02:56.9]} 8. Be3 {[%clk
0:02:58.8]} 8... Qd8 {[%clk 0:02:57]} 9. Nd4 {[%clk 0:02:56.3]} 9... e6 {[%clk
0:02:47.6]} 10. Bb3 {[%clk 0:02:55.9]} 10... Qc7 {[%clk 0:02:42.3]} 11. O-O
{[%clk 0:02:54.1]} 11... Be7 {[%clk 0:02:41]} 12. f4 {[%clk 0:02:54.2]} 12...
Na5 {[%clk 0:02:35]} 13. f5 {[%clk 0:02:52.8]} 13... Nxb3 {[%clk 0:02:28]} 14.
cxb3 {[%clk 0:02:52.3]} 14... e5 {[%clk 0:02:28.3]} 15. Nde2 {[%clk 0:02:51.6]}
15... b5 {[%clk 0:02:20.7]} 16. Rc1 {[%clk 0:02:50.4]} 16... Qb7 {[%clk
0:02:14.7]} 17. Ng3 {[%clk 0:02:48.6]} 17... Bd7 {[%clk 0:02:09.4]} 18. Bg5
{[%clk 0:02:47]} 18... Bc6 {[%clk 0:02:09.9]} 19. Bxf6 {[%clk 0:02:46.9]} 19...
Bxf6 {[%clk 0:02:09.4]} 20. Nh5 {[%clk 0:02:42.8]} 20... b4 {[%clk 0:02:03.6]}
21. Nd5 {[%clk 0:02:42.1]} 21... Bxd5 {[%clk 0:01:57.4]} 22. exd5 {[%clk
0:02:42]} 22... Bg5 {[%clk 0:01:39.7]} 23. Rc6 {[%clk 0:02:39.7]} 23... g6
{[%clk 0:01:31.2]} 24. Ng3 {[%clk 0:02:27.4]} 24... Rc8 {[%clk 0:01:06.9]} 25.
Rxc8+ {[%clk 0:02:13.8]} 25... Qxc8 {[%clk 0:01:07.8]} 26. Ne4 {[%clk
0:02:14.2]} 26... Be3+ {[%clk 0:00:59.9]} 27. Kh1 {[%clk 0:02:13.8]} 27... Qc7
{[%clk 0:00:44.8]} 28. Qf3 {[%clk 0:02:07.4]} 28... Bd4 {[%clk 0:00:29]} 29.
Nf6+ {[%clk 0:01:52.7]} 29... Kd8 {[%clk 0:00:23.4]} 30. Ne4 {[%clk 0:01:50.9]}
30... Kc8 {[%clk 0:00:14.5]} 31. g3 {[%clk 0:01:27.1]} 31... Kb7 {[%clk
0:00:09.1]} 32. Qd3 {[%clk 0:01:18.7]} 32... Rc8 {[%clk 0:00:08.5]} 33. fxg6
{[%clk 0:01:18.5]} 33... f5 {[%clk 0:00:04.1]} 34. Rxf5 {[%clk 0:01:00.6]} 34...
Qc1+ {[%clk 0:00:04.4]} 35. Kg2 {[%clk 0:01:00.9]} 35... Rc2+ {[%clk 0:00:02.5]}
36. Nf2 {[%clk 0:00:56.3]} 36... Bxf2 {[%clk 0:00:02]} 37. Rxf2 {[%clk
0:00:55.8]} 37... Rxf2+ {[%clk 0:00:01.7]} 38. Kxf2 {[%clk 0:00:55.8]} 38...
Qxb2+ {[%clk 0:00:02.6]} 39. Kf3 {[%clk 0:00:55.1]} 39... hxg6 {[%clk
0:00:02.5]} 40. Qe2 {[%clk 0:00:31.8]} 40... Qc3+ {[%clk 0:00:02.6]} 41. Kg2
{[%clk 0:00:29]} 41... Kb6 {[%clk 0:00:02.6]} 42. h4 {[%clk 0:00:26.5]} 42... a5
{[%clk 0:00:01.9]} 43. g4 {[%clk 0:00:25.3]} 43... Kb7 {[%clk 0:00:02.4]} 44. h5
{[%clk 0:00:23.9]} 44... gxh5 {[%clk 0:00:03.3]} 45. gxh5 {[%clk 0:00:24]} 45...
Qd4 {[%clk 0:00:04]} 46. Qf3 {[%clk 0:00:19.4]} 46... Qd2+ {[%clk 0:00:03.6]}
47. Kg3 {[%clk 0:00:19.2]} 47... Qg5+ {[%clk 0:00:04.1]} 48. Qg4 {[%clk
0:00:18.6]} 48... Qe3+ {[%clk 0:00:03.7]} 49. Kh4 {[%clk 0:00:18.8]} 49... Qh6
{[%clk 0:00:03]} 50. Qg5 {[%clk 0:00:17.4]} 50... Qh7 {[%clk 0:00:02.7]} 51. h6
{[%clk 0:00:17.6]} 51... Qe4+ {[%clk 0:00:02.9]} 52. Kh5 {[%clk 0:00:17.8]}
52... Qf3+ {[%clk 0:00:02.9]} 53. Kg6 {[%clk 0:00:17.6]} 53... Qe4+ {[%clk
0:00:02.8]} 54. Qf5 {[%clk 0:00:17.5]} 54... Qxd5 {[%clk 0:00:03]} 55. h7 {[%clk
0:00:17.2]} 55... Qg2+ {[%clk 0:00:03.7]} 56. Kf7 {[%clk 0:00:16.8]} 56... Qh2
{[%clk 0:00:02.3]} 57. Kg8 {[%clk 0:00:14.7]} 57... Qg3+ {[%clk 0:00:01.8]} 58.
Kf8 {[%clk 0:00:13.5]} 58... Qh4 {[%clk 0:00:02.2]} 59. Qf7+ {[%clk 0:00:13]}
59... Kc6 {[%clk 0:00:02.6]} 60. Kg8 {[%clk 0:00:13.1]} 60... Qg5+ {[%clk
0:00:02.3]} 61. Qg7 {[%clk 0:00:12.9]} 61... Qd8+ {[%clk 0:00:02.9]} 62. Qf8
{[%clk 0:00:12.9]} 62... Qg5+ {[%clk 0:00:02.9]} 63. Kf7 {[%clk 0:00:12.9]}
63... Qh5+ {[%clk 0:00:02.6]} 64. Kg7 {[%clk 0:00:11.8]} 64... Qg5+ {[%clk
0:00:03.2]} 65. Kh8 {[%clk 0:00:11.1]} 65... e4 {[%clk 0:00:03.4]} 66. Qa8+
{[%clk 0:00:08.8]} 66... Kd7 {[%clk 0:00:02.1]} 67. Qxe4 {[%clk 0:00:08.5]}
67... Qf6+ {[%clk 0:00:01.4]} 68. Kg8 {[%clk 0:00:08]} 68... Qg5+ {[%clk
0:00:02.1]} 69. Kf7 {[%clk 0:00:07.9]} 69... Qh5+ {[%clk 0:00:01.6]} 70. Kg7
{[%clk 0:00:07.7]} 70... Qg5+ {[%clk 0:00:01.7]} 71. Qg6 {[%clk 0:00:07.7]}
71... Qe5+ {[%clk 0:00:02.1]} 72. Kh6 {[%clk 0:00:07.1]} 72... Qh2+ {[%clk
0:00:01.6]} 73. Kg7 {[%clk 0:00:06.1]} 73... Qe5+ {[%clk 0:00:01.9]} 74. Qf6
{[%clk 0:00:06.6]} 74... Qg3+ {[%clk 0:00:02.5]} 75. Kf7 {[%clk 0:00:06.4]} 1-0

[Event "*** Titled Tuesday Blitz"]
[Site "Chess.com"]
[Date "2021.03.09"]
[Round "8"]
[White "PopMilan95"]
[Black "ckgchess"]
[Result "1-0"]
[WhiteElo "2623"]
[BlackElo "2748"]
[TimeControl "180+1"]
[EndTime "11:33:30 PST"]
[Termination "PopMilan95 won by resignation"]

1. e4 {[%clk 0:02:56.5]} 1... c6 {[%clk 0:02:59.9]} 2. Nc3 {[%clk 0:02:55.6]}
2... d5 {[%clk 0:02:59.9]} 3. Qe2 {[%clk 0:02:56]} 3... d4 {[%clk 0:02:53.5]} 4.
Nd1 {[%clk 0:02:55.7]} 4... e5 {[%clk 0:02:54]} 5. g3 {[%clk 0:02:53.2]} 5...
Bd6 {[%clk 0:02:49.7]} 6. d3 {[%clk 0:02:50.5]} 6... h5 {[%clk 0:02:45.6]} 7. f4
{[%clk 0:02:02.9]} 7... h4 {[%clk 0:02:40.9]} 8. Nf2 {[%clk 0:02:02.4]} 8...
hxg3 {[%clk 0:02:36.2]} 9. hxg3 {[%clk 0:02:03.3]} 9... Rxh1 {[%clk 0:02:35.8]}
10. Nxh1 {[%clk 0:02:04.2]} 10... exf4 {[%clk 0:02:36.4]} 11. gxf4 {[%clk
0:02:05.1]} 11... Qh4+ {[%clk 0:02:35.9]} 12. Nf2 {[%clk 0:02:05.4]} 12... Bxf4
{[%clk 0:02:33.6]} 13. Nf3 {[%clk 0:02:05.5]} 13... Qg3 {[%clk 0:02:30.5]} 14.
Bxf4 {[%clk 0:01:53.5]} 14... Qxf4 {[%clk 0:02:30.1]} 15. Nxd4 {[%clk
0:01:53.3]} 15... Nd7 {[%clk 0:02:10.6]} 16. Qd2 {[%clk 0:01:38.9]} 16... Qf6
{[%clk 0:02:02.9]} 17. c3 {[%clk 0:01:36]} 17... Ne5 {[%clk 0:01:57.4]} 18.
O-O-O {[%clk 0:01:32.2]} 18... Bd7 {[%clk 0:01:57.5]} 19. Qe3 {[%clk 0:01:26.3]}
19... O-O-O {[%clk 0:01:54.6]} 20. Nc2 {[%clk 0:01:19.8]} 20... Kb8 {[%clk
0:01:52.7]} 21. d4 {[%clk 0:01:19.5]} 21... Ng6 {[%clk 0:01:50.9]} 22. Bc4
{[%clk 0:00:54.8]} 22... Nh6 {[%clk 0:01:47]} 23. e5 {[%clk 0:00:51.1]} 23...
Qe7 {[%clk 0:01:46.2]} 24. Ne4 {[%clk 0:00:49.2]} 24... Bf5 {[%clk 0:01:39.5]}
25. Re1 {[%clk 0:00:37.9]} 25... Ng4 {[%clk 0:01:30.3]} 26. Qg5 {[%clk
0:00:28.2]} 26... Bxe4 {[%clk 0:01:07.8]} 27. Qxe7 {[%clk 0:00:22.6]} 27... Nxe7
{[%clk 0:01:08.7]} 28. Rxe4 {[%clk 0:00:22]} 28... Nh6 {[%clk 0:01:09.4]} 29.
Rf4 {[%clk 0:00:17.9]} 29... Nd5 {[%clk 0:01:05.9]} 30. Rf1 {[%clk 0:00:15.4]}
30... Kc7 {[%clk 0:01:03]} 31. Rg1 {[%clk 0:00:13.4]} 31... g6 {[%clk
0:00:59.1]} 32. Bxd5 {[%clk 0:00:13.4]} 32... Rxd5 {[%clk 0:00:58.3]} 33. Ne3
{[%clk 0:00:13.6]} 33... Rd8 {[%clk 0:00:55.6]} 34. Rh1 {[%clk 0:00:11.5]} 34...
Ng8 {[%clk 0:00:53.4]} 35. Rh7 {[%clk 0:00:10.3]} 35... Rd7 {[%clk 0:00:52.4]}
36. Rg7 {[%clk 0:00:09.6]} 36... Nh6 {[%clk 0:00:49.9]} 37. Kd2 {[%clk
0:00:08.5]} 37... Kd8 {[%clk 0:00:44.6]} 38. Rh7 {[%clk 0:00:06.8]} 38... Nf5
{[%clk 0:00:43.1]} 39. Nxf5 {[%clk 0:00:06.7]} 39... gxf5 {[%clk 0:00:44]} 40.
Ke3 {[%clk 0:00:07]} 40... Ke7 {[%clk 0:00:41.8]} 41. Rh6 {[%clk 0:00:06.7]}
41... Rd8 {[%clk 0:00:37.1]} 42. Rf6 {[%clk 0:00:06.5]} 42... Rh8 {[%clk
0:00:35.4]} 43. Rxf5 {[%clk 0:00:06.9]} 43... Rh3+ {[%clk 0:00:34.6]} 44. Rf3
{[%clk 0:00:07]} 44... Rh2 {[%clk 0:00:35.1]} 45. Rf2 {[%clk 0:00:06.9]} 45...
Rh1 {[%clk 0:00:34.7]} 46. Kd3 {[%clk 0:00:06.5]} 46... Ra1 {[%clk 0:00:34]} 47.
a3 {[%clk 0:00:06.3]} 47... Rh1 {[%clk 0:00:31.1]} 48. Kc4 {[%clk 0:00:06.2]}
48... Rh4 {[%clk 0:00:27.2]} 49. Kc5 {[%clk 0:00:05.1]} 49... Rh5 {[%clk
0:00:25.9]} 50. a4 {[%clk 0:00:05]} 50... f5 {[%clk 0:00:22]} 51. a5 {[%clk
0:00:04.1]} 51... a6 {[%clk 0:00:11]} 52. Kb6 {[%clk 0:00:04.2]} 52... Ke6
{[%clk 0:00:11.3]} 53. Kxb7 {[%clk 0:00:04.6]} 53... Kd5 {[%clk 0:00:11.9]} 54.
Kxa6 {[%clk 0:00:04.3]} 54... c5 {[%clk 0:00:10]} 55. dxc5 {[%clk 0:00:05.2]}
55... Kxc5 {[%clk 0:00:09.2]} 56. e6 {[%clk 0:00:05.4]} 56... Kd6 {[%clk
0:00:09.3]} 57. Kb6 {[%clk 0:00:03.7]} 57... Rh8 {[%clk 0:00:07.9]} 58. Kb7
{[%clk 0:00:02.8]} 58... Rh7+ {[%clk 0:00:07.2]} 59. Kb6 {[%clk 0:00:02.9]}
59... Rh8 {[%clk 0:00:07.5]} 60. Rd2+ {[%clk 0:00:02.9]} 60... Kxe6 {[%clk
0:00:07.4]} 61. a6 {[%clk 0:00:03.4]} 61... f4 {[%clk 0:00:07.4]} 62. a7 {[%clk
0:00:03.4]} 62... Ke5 {[%clk 0:00:07.3]} 63. Kb7 {[%clk 0:00:03.4]} 63... Rh7+
{[%clk 0:00:07.8]} 64. Ka6 {[%clk 0:00:03.6]} 64... Rh6+ {[%clk 0:00:08.2]} 65.
Ka5 {[%clk 0:00:02.8]} 65... Rh8 {[%clk 0:00:08]} 66. b4 {[%clk 0:00:03]} 66...
Ke4 {[%clk 0:00:06.6]} 67. Rd4+ {[%clk 0:00:02.3]} 67... Ke3 {[%clk 0:00:06.8]}
68. Rxf4 {[%clk 0:00:02.6]} 68... Kxf4 {[%clk 0:00:07.7]} 69. b5 {[%clk
0:00:03.5]} 69... Ke5 {[%clk 0:00:08.2]} 70. b6 {[%clk 0:00:03.9]} 70... Kd6
{[%clk 0:00:08.3]} 71. b7 {[%clk 0:00:04.2]} 71... Kc7 {[%clk 0:00:04.9]} 72.
a8=Q {[%clk 0:00:04]} 72... Rh5+ {[%clk 0:00:04.9]} 73. Kb4 {[%clk 0:00:04.2]}
73... Rh4+ {[%clk 0:00:05.2]} 74. Kb3 {[%clk 0:00:04.6]} 74... Rh8 {[%clk
0:00:03.3]} 75. Qxh8 {[%clk 0:00:04.1]} 75... Kxb7 {[%clk 0:00:03.3]} 76. Qh6
{[%clk 0:00:05]} 76... Ka7 {[%clk 0:00:03.6]} 77. Kb4 {[%clk 0:00:05.9]} 77...
Ka8 {[%clk 0:00:04.5]} 78. Kb5 {[%clk 0:00:06.8]} 78... Ka7 {[%clk 0:00:05.4]}
79. Qg7+ {[%clk 0:00:07.1]} 79... Ka8 {[%clk 0:00:05.3]} 80. Kb6 {[%clk
0:00:08]} 1-0